bitfinex-derivatives/quotes_ETHF0:USTF0_20250903
["timestamp","ask_amount","ask_price","bid_price","bid_amount"]
[1756882156467,3.7163,4313.0,4312.9,0.9436]
[1756882157374,5.0145347,4313.0,4312.9,0.7096]
[1756882157565,5.1421347,4313.0,4312.9,0.9436]
[1756882159770,4.0386,4313.0,4312.9,0.9436]
[1756882159971,5.1421347,4313.0,4312.9,0.9436]
[1756882166683,4.0386,4313.0,4312.9,0.9436]
[1756882166883,3.911,4313.0,4312.9,0.9436]
[1756882168284,4.56201937,4313.0,4312.9,0.9436]
[1756882168882,4.68961937,4313.0,4312.9,0.9436]
[1756882174279,4.68961937,4313.0,4312.9,0.194]
[1756882174485,0.3885,4312.8,4312.7,40.8]
[1756882174788,1.35421937,4312.8,4312.7,41.034]
[1756882175589,1.35421937,4312.8,4312.7,41.3513]
[1756882178592,1.35421937,4312.8,4312.7,41.034]
[1756882180281,0.8308,4312.5,4312.4,0.194]
[1756882180595,5.1421347,4312.5,4312.4,0.234]
[1756882180786,5.1421347,4312.5,4312.4,41.034]
[1756882181188,5.1421347,4312.5,4312.4,40.8]
[1756882182492,5.1421347,4312.5,4312.4,0.2127]
[1756882190003,5.1421347,4312.5,4312.3,40.8]
[1756882190004,4.8274347,4312.5,4312.3,40.8]
[1756882190197,0.3101,4312.4,4312.3,40.8]
[1756882193103,0.3101,4312.4,4312.3,41.034]
[1756882195008,0.3101,4312.4,4312.3,41.3331]
[1756882197502,0.3101,4312.4,4312.3,41.0991]
[1756882197702,0.3101,4312.4,4312.3,41.3331]
[1756882199614,3.2078,4313.0,4312.4,0.4188]
[1756882199811,3.542,4313.0,4312.5,1.3375347]
[1756882200018,3.3319,4313.0,4312.5,1.3375347]
[1756882200209,3.542,4313.0,4312.5,1.3375347]
[1756882200410,0.5202,4312.9,4312.5,0.234]
[1756882200610,0.1241,4312.5,4312.3,40.8]
[1756882200811,3.542,4312.5,4312.4,0.234]
[1756882201412,3.642,4312.5,4312.4,0.234]
[1756882203116,3.2078,4312.5,4312.4,4.46589]
[1756882203319,0.3101,4313.1,4312.4,4.46589]
[1756882203514,0.3101,4313.4,4312.7,1.34870074]
[1756882203821,0.3101,4313.7,4313.3,1.34870074]
[1756882204015,0.3101,4313.7,4313.4,0.234]
[1756882204715,3.2078,4313.8,4313.4,0.234]
[1756882204912,0.2101,4313.7,4312.8,40.8]
[1756882205215,0.3101,4313.4,4313.0,1.34870074]
[1756882205414,0.3101,4313.4,4313.1,0.234]
[1756882205614,0.3101,4313.4,4313.1,0.46584999]
[1756882205807,0.3342,4313.5,4312.8,40.8]
[1756882206010,0.3101,4313.4,4312.9,0.46584999]
[1756882206212,0.3342,4313.5,4312.9,0.46584999]
[1756882206417,0.3101,4313.4,4313.0,0.23184999]
[1756882206620,0.5202,4313.4,4313.1,0.234]
[1756882207317,0.7341,4313.3,4313.2,0.234]
[1756882207521,0.3101,4313.3,4313.2,0.234]
[1756882207712,0.424,4313.3,4312.8,42.14870074]
[1756882207915,0.5202,4312.9,4312.8,40.8]
[1756882208307,0.7341,4312.1,4312.0,3.2078]
[1756882208512,0.7341,4312.1,4312.0,3.4418]
[1756882208909,0.7341,4312.1,4312.0,44.2418]
[1756882209621,0.7341,4312.1,4312.0,41.034]
[1756882213524,0.5202,4312.1,4312.0,41.034]
[1756882213720,0.3101,4312.1,4312.0,41.034]
[1756882215027,0.3101,4312.1,4312.0,40.8]
[1756882215235,0.3101,4312.1,4312.0,41.034]
[1756882215822,0.1241,4312.5,4312.0,41.034]
[1756882216018,0.3195,4312.2,4312.0,41.034]
[1756882216323,3.2078,4312.3,4312.0,40.8]
[1756882216324,0.5235,4312.1,4312.0,40.8]
[1756882216519,0.5235,4312.1,4312.0,41.034]
[1756882218620,0.5235,4312.1,4312.0,40.8]
[1756882218824,0.5235,4312.1,4312.0,41.034]
[1756882219728,0.3195,4312.1,4312.0,41.034]
[1756882221528,0.3195,4312.8,4312.0,41.034]
[1756882221725,0.204,4312.7,4312.2,1.34870074]
[1756882221927,0.3195,4312.8,4312.3,0.234]
[1756882222132,0.5235,4312.8,4312.3,0.234]
[1756882222630,0.3195,4312.4,4312.3,0.234]
[1756882223425,0.3195,4312.4,4311.2,0.41747]
[1756882223426,0.1271,4311.5,4311.0,30.598]
[1756882223629,0.3311,4311.0,4310.4,3.2078]
[1756882223823,0.3195,4310.9,4310.5,0.235]
[1756882224128,0.3195,4310.9,4310.4,3.2078]
[1756882224129,0.3195,4310.9,4310.6,0.235]
[1756882224324,0.204,4310.9,4310.7,40.8]
[1756882224525,0.3195,4310.8,4310.7,40.8]
[1756882224727,0.3195,4310.8,4310.7,41.035]
[1756882225233,0.3195,4310.8,4310.7,40.8]
[1756882225428,0.3195,4310.8,4310.7,41.035]
[1756882226834,0.3195,4310.8,4309.1,0.41768]
[1756882226835,0.6506,4310.0,4309.9,3.2078]
[1756882227023,0.8463,4310.0,4309.4,3.2078]
[1756882227224,0.8463,4310.0,4309.9,40.8]
[1756882227524,0.8463,4310.0,4309.9,41.035]
[1756882228231,0.8463,4310.0,4309.9,40.8]
[1756882228431,0.8463,4310.0,4309.9,41.035]
[1756882231733,0.8463,4310.0,4309.9,40.8]
[1756882232029,0.8463,4310.0,4309.9,41.035]
[1756882232831,0.8463,4310.0,4309.9,40.8]
[1756882233027,0.4466,4309.0,4308.9,3.2078]
[1756882233344,0.4466,4309.0,4308.9,3.4428]
[1756882233531,0.3195,4309.0,4308.9,44.2428]
[1756882234639,0.3195,4309.4,4308.9,44.2428]
[1756882235233,0.5235,4309.4,4309.0,0.235]
[1756882235440,0.3195,4309.3,4309.0,0.235]
[1756882235641,0.3195,4309.4,4309.0,0.235]
[1756882235841,0.1271,4309.5,4308.9,44.0078]
[1756882236144,0.1271,4309.0,4308.9,44.0078]
[1756882236344,0.4466,4309.0,4308.9,44.2428]
[1756882237551,0.4466,4309.0,4308.9,44.0078]
[1756882237734,0.4466,4309.0,4308.9,44.2428]
[1756882237939,0.3195,4309.5,4308.9,44.2428]
[1756882238135,3.2078,4309.8,4309.4,1.34870074]
[1756882238340,3.2078,4309.8,4309.5,0.235]
[1756882238542,0.3311,4309.5,4309.4,0.235]
[1756882238742,0.6506,4309.5,4309.4,41.035]
[1756882239040,0.4466,4309.5,4309.4,41.035]
[1756882239242,0.3195,4309.7,4309.4,41.035]
[1756882239840,0.3195,4309.6,4309.4,41.035]
[1756882240044,3.2078,4309.8,4309.4,42.38370074]
[1756882240744,3.2078,4309.8,4309.4,40.8]
[1756882240936,3.5273,4309.8,4309.5,0.235]
[1756882241343,3.2078,4309.8,4309.5,0.235]
[1756882242041,0.3183,4310.4,4309.6,0.23203999]
[1756882242342,3.2078,4310.5,4309.9,1.34870074]
[1756882242548,3.2078,4310.5,4310.1,1.34870074]
[1756882242746,3.3263,4310.5,4310.2,0.235]
[1756882242940,0.2071,4310.4,4310.3,0.235]
[1756882243141,0.3256,4310.0,4309.5,3.2078]
[1756882243346,0.3256,4310.0,4309.6,0.235]
[1756882243644,0.3183,4309.9,4309.6,0.235]
[1756882243851,0.5254,4309.9,4309.6,0.235]
[1756882244842,0.2071,4309.9,4309.6,0.235]
[1756882245040,0.1185,4310.0,4309.5,3.2078]
[1756882245041,0.2071,4309.7,4309.5,3.2078]
[1756882245246,0.4368,4309.5,4309.4,40.8]
[1756882245748,0.4368,4309.5,4309.4,41.035]
[1756882246545,3.6446,4309.5,4309.4,41.035]
[1756882246946,3.6446,4309.5,4309.4,40.8]
[1756882247244,3.6446,4309.5,4309.4,41.035]
[1756882249250,3.2078,4309.5,4309.4,41.035]
[1756882249742,0.1185,4310.0,4309.4,41.035]
[1756882249947,0.3183,4309.9,4309.4,41.035]
[1756882250249,0.4368,4310.0,4309.4,41.035]
[1756882251044,3.2078,4310.8,4309.5,0.23203]
[1756882251348,3.2078,4310.8,4309.9,3.2078]
[1756882251647,0.3183,4310.7,4310.0,41.035]
[1756882251852,3.2078,4310.8,4310.0,41.035]
[1756882252147,0.1185,4310.5,4310.0,41.035]
[1756882252348,0.5254,4310.4,4310.0,40.8]
[1756882252648,0.5254,4310.3,4310.1,0.235]
[1756882253041,0.2071,4310.3,4310.1,0.235]
[1756882253344,0.3183,4310.2,4310.1,0.235]
[1756882253643,0.1185,4310.5,4310.1,0.235]
[1756882254147,0.3183,4310.1,4310.0,40.8]
[1756882254451,0.3183,4310.1,4310.0,41.035]
[1756882254953,0.3183,4310.1,4310.0,40.8]
[1756882255653,0.3183,4310.1,4310.0,41.035]
[1756882257044,0.3183,4310.1,4310.0,40.8]
[1756882257248,0.3183,4310.1,4308.9,3.2078]
[1756882257249,0.4066,4309.8,4309.7,0.235]
[1756882257445,3.9327,4309.8,4309.7,0.235]
[1756882257649,0.7249,4309.7,4309.6,0.235]
[1756882257845,0.7249,4309.7,4309.6,41.035]
[1756882258350,0.8434,4309.5,4309.4,0.235]
[1756882258853,0.8434,4309.5,4309.4,41.035]
[1756882259049,0.8434,4309.5,4308.4,3.2078]
[1756882259253,0.4368,4308.5,4308.4,3.2078]
[1756882259455,0.4368,4308.5,4308.4,3.4428]
[1756882259655,0.4368,4308.5,4308.4,44.2428]
[1756882260150,0.1185,4308.5,4308.4,44.2428]
[1756882260352,0.1185,4309.0,4308.4,44.2428]
[1756882260551,0.1185,4309.0,4308.4,44.0078]
[1756882260754,0.3183,4308.9,4308.5,0.235]
[1756882261055,0.3183,4308.8,4308.6,0.235]
[1756882261355,0.3183,4309.3,4308.6,0.235]
[1756882261559,0.5254,4309.3,4308.6,0.235]
[1756882261855,0.5254,4309.2,4308.7,0.235]
[1756882262157,0.3183,4308.9,4308.7,0.235]
[1756882262354,0.3183,4309.2,4308.7,0.235]
[1756882262566,0.3183,4309.4,4308.4,44.0078]
[1756882262751,0.5254,4309.4,4308.5,0.235]
[1756882263650,0.5254,4309.3,4308.6,0.235]
[1756882264350,0.5254,4309.3,4308.9,3.2078]
[1756882264351,0.3183,4309.3,4308.9,3.2078]
[1756882264555,0.3256,4309.5,4309.0,0.235]
[1756882264858,0.2071,4309.4,4309.0,0.235]
[1756882265059,0.3183,4309.4,4309.1,40.8]
[1756882265452,0.3183,4309.4,4309.2,0.235]
[1756882265655,3.2078,4309.6,4309.2,0.235]
[1756882266157,0.3183,4309.8,4309.2,0.235]
[1756882266757,0.3183,4309.7,4309.1,40.8]
[1756882267052,0.1185,4309.5,4309.3,0.235]
[1756882267261,0.5254,4309.4,4309.3,0.235]
[1756882267961,0.3183,4309.4,4309.3,0.235]
[1756882271859,0.5254,4309.4,4309.3,0.235]
[1756882272064,0.314,4309.5,4309.3,0.235]
[1756882272268,0.6076,4309.0,4308.9,3.2078]
[1756882272564,0.8184,4309.0,4308.9,3.2078]
[1756882272767,0.8184,4309.0,4308.9,41.035]
[1756882273866,0.6076,4309.0,4308.9,42.14075596]
[1756882274063,0.4121,4309.0,4308.9,41.90575596]
[1756882274260,0.4121,4309.0,4308.9,41.035]
[1756882274462,0.4121,4309.0,4308.9,42.14075596]
[1756882275171,0.4121,4309.0,4308.9,41.90575596]
[1756882275358,0.1185,4309.5,4308.9,42.14075596]
[1756882275558,0.2896,4309.4,4309.3,1.10575596]
[1756882275766,3.2078,4309.7,4309.3,1.34075596]
[1756882275972,3.4974,4309.7,4309.6,1.10575596]
[1756882276161,3.4974,4309.7,4309.6,1.34075596]
[1756882276361,0.6036,4310.5,4309.6,5.99041595]
[1756882276566,0.2896,4310.9,4310.4,41.90575596]
[1756882276771,0.2896,4310.9,4310.7,1.10575596]
[1756882276961,0.6959,4310.9,4310.8,0.235]
[1756882277467,0.4063,4310.9,4310.4,40.8]
[1756882277663,0.2896,4310.8,4310.5,0.235]
[1756882277964,0.4851,4310.6,4310.5,0.235]
[1756882280872,0.2896,4310.9,4310.5,0.235]
[1756882281073,0.2896,4311.3,4310.6,3.62533]
[1756882281278,0.318,4311.5,4311.1,3.2078]
[1756882281480,0.1955,4311.4,4311.2,0.235]
[1756882281775,0.2896,4311.2,4311.1,3.2078]
[1756882281975,0.2896,4311.4,4311.1,3.4428]
[1756882282177,0.2896,4311.4,4311.3,40.8]
[1756882282379,0.2896,4311.4,4311.3,41.035]
[1756882285473,0.2896,4311.4,4311.3,40.8]
[1756882285673,0.2896,4311.4,4311.3,41.035]
[1756882287483,0.2896,4311.4,4311.3,41.036]
[1756882287681,0.2896,4311.4,4311.3,41.035]
[1756882289291,0.2896,4311.4,4311.3,40.8]
[1756882289584,0.2896,4311.4,4311.3,41.035]
[1756882291686,0.2896,4311.4,4310.5,3.2078]
[1756882291687,0.6959,4310.6,4310.5,3.2078]
[1756882291988,0.1225,4310.5,4310.0,3.2078]
[1756882292190,0.1955,4310.2,4310.1,0.235]
[1756882292387,0.2896,4310.2,4310.1,0.235]
[1756882292785,0.2896,4310.2,4310.1,41.035]
[1756882293483,0.2896,4310.9,4310.1,45.035]
[1756882293689,0.2896,4310.9,4310.5,3.2078]
[1756882293880,3.2078,4311.3,4310.8,3.97803541]
[1756882294080,3.2078,4311.3,4310.9,0.235]
[1756882294289,0.1225,4311.0,4310.8,3.97803541]
[1756882294492,0.1225,4311.0,4310.5,3.2078]
[1756882294683,0.1955,4310.6,4310.5,3.2078]
[1756882294882,0.1955,4310.6,4310.5,3.4428]
[1756882295082,0.2896,4310.9,4310.5,3.4428]
[1756882295282,0.318,4311.0,4310.5,3.4428]
[1756882295483,0.1955,4310.9,4310.5,3.4428]
[1756882295678,0.1225,4311.0,4310.5,3.4428]
[1756882295884,0.1955,4310.9,4310.5,3.4428]
[1756882296189,0.4851,4310.9,4310.5,3.4428]
[1756882296497,0.1955,4310.8,4310.5,3.4428]
[1756882296784,0.2896,4310.9,4310.5,3.4428]
[1756882296989,0.318,4311.0,4310.5,3.4428]
[1756882297389,0.1955,4310.9,4310.5,3.4428]
[1756882297589,0.1225,4311.0,4310.5,3.4428]
[1756882297590,0.1955,4310.8,4310.5,3.4428]
[1756882297783,0.318,4311.0,4310.5,3.4428]
[1756882297979,0.4851,4310.6,4310.5,3.2078]
[1756882298183,0.4851,4310.6,4310.5,3.4428]
[1756882299494,0.2896,4310.6,4310.5,3.4428]
[1756882299991,0.2896,4310.6,4310.5,3.2078]
[1756882300186,0.2896,4310.9,4310.5,3.4428]
[1756882300391,0.318,4311.0,4310.5,3.4428]
[1756882300594,0.1955,4310.8,4310.5,3.4428]
[1756882300793,0.2896,4310.9,4310.6,0.235]
[1756882301193,0.4851,4310.9,4310.6,0.235]
[1756882301998,0.2914,4310.8,4310.7,0.235]
[1756882302595,0.2914,4310.9,4310.5,3.2078]
[1756882302801,0.4883,4310.9,4310.6,0.235]
[1756882303503,0.1969,4310.9,4310.6,1.33999004]
[1756882303797,0.2914,4310.7,4310.6,1.33999004]
[1756882305806,0.2914,4310.7,4310.6,42.13999004]
[1756882313013,0.1225,4311.0,4310.6,42.13999004]
[1756882313214,0.1969,4310.7,4310.6,42.13999004]
[1756882313511,0.4883,4310.7,4310.6,42.13999004]
[1756882315516,0.2914,4310.7,4310.6,42.13999004]
[1756882323617,0.2914,4310.7,4310.6,41.90499004]
[1756882323815,0.2914,4310.7,4310.6,42.13999004]
[1756882325422,0.2914,4310.7,4310.6,41.035]
[1756882327625,0.2914,4310.9,4310.6,41.035]
[1756882327828,0.1225,4311.0,4310.6,41.035]
[1756882328024,0.4883,4310.7,4310.6,41.035]
[1756882329128,0.2914,4310.7,4310.6,41.035]
[1756882329831,0.1225,4311.0,4310.6,41.035]
[1756882330037,0.2914,4310.9,4310.6,41.035]
[1756882330529,0.1225,4311.0,4310.6,41.035]
[1756882332329,0.3061,4310.9,4310.6,41.035]
[1756882332522,0.1225,4311.0,4310.6,41.035]
[1756882333030,0.3061,4310.9,4310.6,41.035]
[1756882333327,0.1225,4311.0,4310.6,41.035]
[1756882333622,0.3061,4310.9,4310.7,0.235]
[1756882334232,0.3061,4310.9,4310.8,40.8]
[1756882338433,0.3061,4310.9,4310.8,41.035]
[1756882339524,3.2078,4312.4,4310.8,47.03411383]
[1756882339826,0.4286,4312.0,4311.9,1.34963383]
[1756882340026,0.3061,4311.9,4311.6,1.34963383]
[1756882340326,0.2037,4311.8,4311.7,0.235]
[1756882340529,0.5098,4311.8,4311.7,0.235]
[1756882340731,0.5098,4311.8,4311.7,41.035]
[1756882341326,0.3061,4311.8,4311.7,41.035]
[1756882341729,0.3061,4311.8,4311.7,40.8]
[1756882341933,0.3061,4311.8,4311.7,41.035]
[1756882345122,0.3061,4311.8,4311.7,40.8]
[1756882345326,0.3061,4311.8,4311.7,41.035]
[1756882346231,0.3061,4311.8,4311.7,40.8]
[1756882346733,0.3061,4311.8,4311.7,41.035]
[1756882347333,0.3061,4311.8,4311.7,40.8]
[1756882347730,0.3061,4311.8,4311.7,41.035]
[1756882347931,4.3061,4311.8,4311.7,41.035]
[1756882348335,4.53802,4311.8,4311.7,41.035]
[1756882348832,4.7118,4311.8,4311.7,0.235]
[1756882349323,0.5098,4311.8,4311.7,0.235]
[1756882349529,3.5139,4311.9,4311.7,0.235]
[1756882349729,0.3061,4311.8,4311.6,1.34963383]
[1756882349925,0.3061,4311.8,4311.7,0.235]
[1756882351237,0.3061,4311.8,4311.7,41.035]
[1756882351937,0.7118,4310.8,4310.7,3.2078]
[1756882352138,0.7118,4310.8,4310.7,3.4428]
[1756882352331,0.7118,4310.8,4310.7,44.2428]
[1756882353131,0.5098,4310.8,4310.7,44.2428]
[1756882353325,0.3061,4310.8,4310.7,44.2428]
[1756882353531,0.3061,4311.4,4310.7,48.2428]
[1756882353732,0.3061,4311.4,4310.7,44.0078]
[1756882354033,0.1261,4311.5,4310.8,1.58463383]
[1756882354231,0.5098,4311.4,4310.8,1.58463383]
[1756882354425,0.2037,4311.3,4310.8,1.34963383]
[1756882354724,0.3061,4310.9,4310.8,1.34963383]
[1756882354926,0.3061,4311.4,4310.8,1.58463383]
[1756882355131,3.4115,4311.9,4311.3,1.34963383]
[1756882355433,0.6359,4311.5,4311.4,0.235]
[1756882355629,0.4322,4311.5,4311.4,0.235]
[1756882355830,0.3298,4311.5,4310.7,3.2078]
[1756882356026,0.1261,4311.0,4310.8,41.035]
[1756882356239,0.3061,4310.9,4310.8,41.035]
[1756882363341,0.3061,4310.9,4310.8,40.8]
[1756882363542,0.3061,4310.9,4310.8,41.035]
[1756882364042,0.3061,4310.9,4310.8,40.8]
[1756882364241,0.3061,4310.9,4310.8,41.035]
[1756882365941,0.3164,4311.4,4310.8,41.035]
[1756882366143,0.3164,4311.4,4311.0,1.34963383]
[1756882366338,0.21,4311.4,4311.1,0.235]
[1756882366540,0.3361,4311.5,4311.1,0.235]
[1756882366739,0.3164,4311.3,4311.2,40.8]
[1756882366942,0.3164,4311.3,4311.2,41.035]
[1756882373945,0.3164,4311.3,4311.2,40.8]
[1756882374548,0.3164,4311.3,4311.2,41.035]
[1756882374739,0.3164,4311.3,4311.2,40.8]
[1756882374939,0.3164,4311.3,4311.2,41.035]
[1756882378843,0.1225,4312.0,4311.2,48.2428]
[1756882379038,0.3164,4311.9,4311.7,1.34963383]
[1756882379343,0.3164,4311.9,4311.8,0.235]
[1756882380246,0.1225,4312.0,4311.4,1.34963383]
[1756882380452,0.3164,4311.9,4311.5,0.235]
[1756882380750,0.1225,4312.0,4311.5,0.235]
[1756882381252,0.3164,4311.9,4311.6,0.235]
[1756882381847,0.1225,4312.0,4311.6,0.235]
[1756882382149,0.3164,4311.9,4311.6,0.235]
[1756882382347,3.3303,4312.5,4311.7,1.34963383]
[1756882382542,0.21,4311.9,4311.2,3.2078]
[1756882382738,0.3164,4311.7,4311.4,1.34963383]
[1756882382946,0.117,4312.0,4311.6,40.8]
[1756882383149,0.3164,4311.9,4311.7,0.235]
[1756882383647,0.327,4312.0,4311.7,0.235]
[1756882383851,0.3164,4311.9,4311.7,0.235]
[1756882384254,0.327,4312.0,4311.7,0.235]
[1756882384454,0.3164,4311.9,4311.7,0.235]
[1756882385753,0.117,4312.0,4311.7,0.235]
[1756882385951,0.3164,4311.9,4311.7,0.235]
[1756882386348,0.117,4312.0,4311.7,0.235]
[1756882386549,0.1225,4312.5,4311.8,4.55743383]
[1756882386750,0.3164,4312.4,4312.3,1.34963383]
[1756882386956,0.3164,4312.4,4312.3,1.58463383]
[1756882387257,0.3164,4312.5,4312.3,1.58463383]
[1756882387457,0.3164,4312.5,4312.4,1.33899906]
[1756882387755,0.4334,4312.5,4312.4,1.33899906]
[1756882388153,0.4334,4312.5,4312.4,42.13899906]
[1756882392351,0.2895,4312.9,4312.4,41.035]
[1756882392657,0.2895,4312.9,4312.8,1.10399906]
[1756882392855,0.2895,4312.9,4312.8,1.33899906]
[1756882393256,0.2895,4313.4,4312.8,4.54679906]
[1756882393457,0.2895,4313.4,4313.3,1.10399906]
[1756882393659,0.2895,4313.4,4313.3,42.13899906]
[1756882395562,0.117,4314.0,4313.3,42.13899906]
[1756882395563,0.2895,4313.9,4313.3,42.13899906]
[1756882395853,0.6905,4313.9,4313.8,1.10399906]
[1756882396065,0.6905,4313.9,4313.8,1.33899906]
[1756882396557,0.4869,4313.9,4313.8,42.13899906]
[1756882396860,0.2895,4313.9,4313.8,42.13899906]
[1756882397359,3.3248,4314.0,4313.8,42.13899906]
[1756882397554,3.6143,4314.0,4313.8,42.13899906]
[1756882398158,3.3248,4314.0,4313.8,41.90399906]
[1756882398358,3.6143,4314.0,4313.9,0.235]
[1756882399261,3.3248,4314.0,4313.9,0.235]
[1756882399461,3.5222,4314.0,4313.9,0.235]
[1756882399860,3.8117,4314.0,4313.9,0.235]
[1756882401865,0.6039,4314.0,4313.9,0.235]
[1756882402352,0.4065,4314.0,4313.9,0.235]
[1756882402967,0.2895,4313.9,4313.8,41.90399906]
[1756882403162,0.2895,4313.9,4313.8,42.13899906]
[1756882404960,0.2895,4313.9,4313.8,41.90399906]
[1756882405160,0.2895,4313.9,4313.8,42.13899906]
[1756882405760,0.2895,4314.4,4313.8,42.13899906]
[1756882406063,0.6905,4314.4,4314.3,1.10399906]
[1756882406262,0.6905,4314.4,4314.3,1.33899906]
[1756882410169,0.6905,4314.4,4314.3,1.62582796]
[1756882411964,0.6905,4314.4,4314.3,0.2868289]
[1756882412264,0.6905,4313.9,4313.8,40.8]
[1756882412669,4.92231,4313.9,4313.8,40.8]
[1756882412868,0.401,4313.3,4313.2,30.608]
[1756882413063,0.1974,4312.6,4312.5,1.52079906]
[1756882413268,0.4869,4312.6,4312.5,2.07089906]
[1756882413468,0.4869,4312.6,4312.5,42.87089906]
[1756882413976,0.4869,4312.6,4312.5,42.55579906]
[1756882414469,0.4869,4312.6,4312.5,42.32079906]
[1756882414674,0.4869,4312.6,4312.5,42.55579906]
[1756882415471,0.4869,4312.6,4312.5,42.32079906]
[1756882415678,0.4869,4312.6,4312.5,42.55579906]
[1756882415874,0.4869,4312.6,4312.5,41.035]
[1756882416776,7.6947,4312.6,4312.5,41.035]
[1756882416976,7.6947,4312.6,4311.8,30.604]
[1756882416977,0.4931,4311.9,4311.8,30.604]
[1756882417276,0.4931,4311.9,4311.8,30.839]
[1756882417573,0.4931,4311.9,4311.8,71.639]
[1756882420076,0.4931,4311.9,4311.8,71.404]
[1756882420275,0.4931,4311.9,4311.8,71.639]
[1756882421379,0.4931,4311.9,4311.8,71.404]
[1756882421583,0.4931,4311.9,4311.8,71.639]
[1756882421778,0.4931,4311.9,4311.8,71.9428]
[1756882422382,0.4931,4311.9,4311.8,71.404]
[1756882422684,0.4931,4311.9,4311.8,71.639]
[1756882423482,0.2895,4311.9,4311.8,73.04679906]
[1756882423787,0.202,4312.4,4312.3,0.7244]
[1756882423989,0.202,4312.4,4312.3,2.06339906]
[1756882424284,0.5106,4312.4,4312.3,2.06339906]
[1756882425787,0.706,4312.4,4312.3,0.6556]
[1756882429382,0.706,4312.4,4312.3,0.4206]
[1756882429583,0.706,4312.4,4312.3,0.6556]
[1756882430691,0.706,4312.4,4312.3,0.9594]
[1756882432787,0.706,4312.4,4312.3,0.6556]
[1756882435091,0.706,4312.4,4312.3,0.4206]
[1756882435293,0.706,4312.4,4312.3,0.7244]
[1756882435593,0.706,4312.4,4312.3,0.4206]
[1756882435788,0.706,4312.4,4312.1,0.235]
[1756882437603,0.706,4312.4,4312.3,0.2129]
[1756882438094,0.706,4312.4,4312.2,0.235]
[1756882439099,0.706,4312.4,4312.3,40.8]
[1756882444089,0.5106,4312.4,4312.3,40.8]
[1756882444294,0.3086,4312.4,4312.3,40.8]
[1756882450006,0.3086,4311.4,4311.2,3.2078]
[1756882450312,0.5106,4311.3,4311.2,3.2078]
[1756882450497,0.3086,4311.3,4311.2,44.2428]
[1756882452804,0.3086,4311.3,4311.2,41.035]
[1756882456311,0.3086,4311.3,4311.2,40.8]
[1756882456609,0.5031,4310.8,4310.0,4.55670505]
[1756882456809,0.1272,4310.5,4310.0,3.2078]
[1756882457001,0.1272,4310.5,4310.1,41.035]
[1756882457403,0.1272,4310.5,4310.1,40.8]
[1756882457609,0.5031,4310.3,4310.2,0.235]
[1756882458307,0.5031,4310.3,4310.2,41.035]
[1756882459512,0.5031,4310.3,4310.2,40.8]
[1756882459711,0.5031,4310.3,4310.2,41.035]
[1756882462915,0.3028,4310.3,4310.2,41.035]
[1756882463108,0.3028,4310.3,4310.2,40.8]
[1756882463306,0.3028,4310.3,4310.2,41.035]
[1756882467423,0.1272,4309.5,4309.4,3.2078]
[1756882467721,0.43,4309.5,4309.4,3.4428]
[1756882467922,0.43,4309.5,4309.4,44.2428]
[1756882469018,3.335,4310.0,4309.4,44.2428]
[1756882469520,0.3028,4309.9,4309.4,41.035]
[1756882469722,0.1272,4309.5,4309.4,40.8]
[1756882469921,0.43,4309.5,4309.4,41.035]
[1756882471717,3.335,4310.0,4309.4,41.035]
[1756882471920,0.3028,4309.9,4309.4,41.035]
[1756882472116,0.3028,4309.8,4309.4,40.8]
[1756882472317,0.1272,4309.5,4309.4,40.8]
[1756882472525,0.43,4309.5,4309.4,41.035]
[1756882473021,3.335,4310.0,4309.4,41.035]
[1756882473022,0.3028,4309.9,4309.4,41.035]
[1756882473224,0.3028,4309.8,4309.4,41.035]
[1756882473424,3.335,4310.0,4309.4,41.035]
[1756882473623,0.43,4309.5,4309.4,40.8]
[1756882473925,3.6378,4310.0,4309.4,41.03203]
[1756882474224,0.3028,4309.9,4309.7,1.34890505]
[1756882474423,0.3028,4309.9,4309.8,0.235]
[1756882474823,0.3028,4309.9,4309.8,41.035]
[1756882479621,3.335,4310.0,4309.8,41.035]
[1756882479819,0.3028,4309.9,4309.8,40.8]
[1756882480319,0.3028,4309.9,4309.8,41.035]
[1756882480520,0.3028,4309.9,4309.8,40.8]
[1756882480730,1.65170505,4309.9,4309.8,40.8]
[1756882480930,1.65170505,4309.9,4309.8,41.035]
[1756882481120,0.3028,4309.9,4309.8,41.035]
[1756882481919,0.7082,4309.9,4309.8,0.235]
[1756882482115,0.4045,4309.4,4309.3,30.618]
[1756882482321,0.1212,4309.0,4308.9,3.2078]
[1756882482522,0.3206,4309.0,4308.9,0.235]
[1756882482922,0.3206,4309.0,4308.9,41.035]
[1756882483225,0.6215,4309.0,4308.9,41.035]
[1756882483630,0.5003,4308.9,4308.8,0.235]
[1756882484314,0.5003,4308.9,4308.3,40.8]
[1756882484521,0.4221,4308.5,4308.4,0.235]
[1756882489135,0.3009,4308.4,4308.3,40.8]
[1756882489334,0.3009,4308.4,4308.3,41.035]